[Event "2nd Kalyan Dombivali 2019"]
[Site "Kalyan"]
[Date "2019.02.01"]
[Round "7"]
[White "Javheri, Jaydev"]
[Black "Lasani H Kothari"]
[Result "1-0"]
[ECO "B34"]
[WhiteElo "1675"]
[BlackElo "1321"]
[Annotator "NA"]
[PlyCount "143"]
[EventDate "2019.01.28"]
[EventType "swiss"]
[EventRounds "10"]
[EventCountry "IND"]
[SourceTitle "playchess.com"]
[Source "ChessBase"]
[SourceQuality "1"]
[TimeControl "5400+30"]

1. e4 {[%emt 0:00:00]} c5 {[%emt 0:00:00]} 2. Nf3 {[%emt 0:00:00]} Nc6 {[%emt 0:00:00]} 3. d4 {[%emt 0:00:33]} cxd4 {[%emt 0:00:00]} 4. Nxd4 {[%emt 0:00:09]} g6 {[%emt 0:00:00]} 5. Nxc6 {[%emt 0:04:04]} bxc6 {[%emt 0:00:29]} 6. Qd4 {[%emt 0:00:35]} Nf6 {[%emt 0:01:24]} 7. e5 {[%emt 0:03:40]} Ng8 {[%emt 0:01:50]} 8. e6 {[%emt 0:03:48]} Nf6 {[%emt 0:02:50]} 9. exf7+ {[%emt 0:00:20]} Kxf7 {[%emt 0:00:10]} 10. Nc3 {[%emt 0:00:38]} d5 {[%emt 0:06:11]} 11. Bg5 {[%emt 0:06:08]} Bg7 {[%emt 0:01:02]} 12. Bxf6 {[%emt 0:06:27]} Bxf6 {[%emt 0:00:55]} 13. Qc5 {[%emt 0:00:31]} Bd7 {[%emt 0:06:00]} 14. Be2 {[%emt 0:07:11]} Re8 {[%emt 0:05:09]} 15. O-O {[%emt 0:00:28]} Kg8 {[%emt 0:03:50]} 16. Rad1 {[%emt 0:01:16]} e5 {[%emt 0:04:07]} 17. Bf3 {[%emt 0:12:42]} e4 {[%emt 0:13:16]} 18. Be2 {[%emt 0:03:50]} Be7 {[%emt 0:05:26]} 19. Qd4 {[%emt 0:00:18]} Bf6 {[%emt 0:01:17]} 20. Qc5 {[%emt 0:06:09]} Be7 {[%emt 0:01:29]} 21. Qe3 {[%emt 0:01:10]} Bg5 {[%emt 0:01:06]} 22. Qc5 {[%emt 0:02:11]} Be7 {[%emt 0:02:33]} 23. Qd4 {[%emt 0:01:25]} Bf6 {[%emt 0:00:31]} 24. Qe3 {[%emt 0:03:37]} Bg5 {[%emt 0:00:44]} 25. f4 {[%emt 0:00:58]} exf3 {[%emt 0:01:28]} 26. Qxf3 {[%emt 0:00:22]} Rf8 {[%emt 0:02:59]} 27. Qg3 {[%emt 0:01:49]} Bf5 {[%emt 0:04:00]} 28. Bd3 {[%emt 0:05:34]} Bxd3 {[%emt 0:03:52]} 29. Rxf8+ {[%emt 0:02:39]} Qxf8 {[%emt 0:01:37]} 30. cxd3 {[%emt 0:00:55]} Bf4 {[%emt 0:02:54]} 31. Qg4 {[%emt 0:02:15]} Re8 {[%emt 0:01:52]} 32. Qd7 {[%emt 0:01:41]} Rb8 {[%emt 0:09:19]} 33. Qe6+ {[%emt 0:01:30]} Kh8 {[%emt 0:01:53]} 34. Rf1 {[%emt 0:12:18]} d4 {[%emt 0:06:03]} 35. Nd1 {[%emt 0:01:39]} Qd6 {[%emt 0:02:13]} 36. Qxd6 {[%emt 0:03:21]} Bxd6 {[%emt 0:00:09]} 37. Rf6 {[%emt 0:00:05]} Rd8 {[%emt 0:01:32]} 38. Nf2 {[%emt 0:00:17]} c5 {[%emt 0:01:51]} 39. Ne4 {[%emt 0:00:10]} Be7 {[%emt 0:01:23]} 40. Rc6 {[%emt 0:02:12]} Re8 {[%emt 0:01:27]} 41. Nxc5 {[%emt 0:01:03]} Bxc5 {[%emt 0:00:06]} 42. Rxc5 {[%emt 0:00:04]} Re3 {[%emt 0:00:38]} 43. Rc2 {[%emt 0:01:51]} Rxd3 {[%emt 0:00:18]} 44. Kf2 {[%emt 0:00:03]} Re3 {[%emt 0:01:40]} 45. Rd2 {[%emt 0:00:06]} Re4 {[%emt 0:00:23]} 46. Rd3 {[%emt 0:00:24]} Rf4+ {[%emt 0:00:54]} 47. Ke2 {[%emt 0:00:28]} Re4+ {[%emt 0:00:15]} 48. Kf3 {[%emt 0:00:10]} Rh4 {[%emt 0:00:33]} 49. h3 {[%emt 0:00:09]} g5 {[%emt 0:00:15]} 50. Ra3 {[%emt 0:00:07]} Rf4+ {[%emt 0:00:23]} 51. Ke2 {[%emt 0:00:06]} Rf7 {[%emt 0:00:29]} 52. Ra4 {[%emt 0:00:27]} Rd7 {[%emt 0:01:31]} 53. Kd3 {[%emt 0:00:18]} Rf7 {[%emt 0:00:14]} 54. Rxd4 {[%emt 0:01:22]} Rf2 {[%emt 0:00:08]} 55. Kc3 {[%emt 0:00:35]} Rxg2 {[%emt 0:00:09]} 56. Rg4 {[%emt 0:00:07]} Rxg4 {[%emt 0:01:45]} 57. hxg4 {[%emt 0:00:04]} Kg7 {[%emt 0:00:08]} 58. Kd4 {[%emt 0:00:17]} Kf6 {[%emt 0:00:02]} 59. b4 {[%emt 0:00:17]} Ke6 {[%emt 0:00:49]} 60. a4 {[%emt 0:00:09]} a6 {[%emt 0:01:52]} 61. Ke4 {[%emt 0:01:26]} h6 {[%emt 0:00:54]} 62. Kd4 {[%emt 0:00:13]} Kd6 {[%emt 0:00:16]} 63. Ke4 {[%emt 0:00:28]} Ke6 {[%emt 0:00:08]} 64. b5 {[%emt 0:01:07]} a5 {[%emt 0:00:08]} 65. b6 {[%emt 0:00:16]} Kd6 {[%emt 0:00:06]} 66. Kf5 {[%emt 0:00:07]} Kc6 {[%emt 0:00:24]} 67. Kg6 {[%emt 0:00:11]} Kxb6 {[%emt 0:00:39]} 68. Kxh6 {[%emt 0:00:05]} Kc5 {[%emt 0:00:11]} 69. Kxg5 {[%emt 0:00:03]} Kb4 {[%emt 0:00:10]} 70. Kf5 {[%emt 0:00:11]} Kxa4 {[%emt 0:00:05]} 71. g5 {[%emt 0:00:07]} Kb3 {[%emt 0:00:09]} 72. g6 {[%emt 0:00:09]} 1-0

[Event "2nd Kalyan Dombivali 2019"]
[Site "Kalyan"]
[Date "2019.02.01"]
[Round "7"]
[White "Ankur Mahesh Gokhale"]
[Black "Kadam Om Manish"]
[Result "0-1"]
[ECO "B23"]
[WhiteElo "1628"]
[BlackElo "1944"]
[Annotator "NA RC"]
[PlyCount "120"]
[EventDate "2019.01.28"]
[EventType "swiss"]
[EventRounds "10"]
[EventCountry "IND"]
[SourceTitle "playchess.com"]
[Source "ChessBase"]
[SourceQuality "1"]
[TimeControl "5400+30"]

1. e4 {[%emt 0:00:00]} c5 {[%emt 0:00:00]} 2. Nc3 {[%emt 0:00:00]} a6 {[%emt 0:00:15]} 3. g3 {[%emt 0:00:00]} b5 {[%emt 0:00:46]} 4. Bg2 {[%emt 0:00:00]} Bb7 {[%emt 0:00:32]} 5. d3 {[%emt 0:00:00]} e6 {[%emt 0:00:41]} 6. f4 {[%emt 0:00:07]} Nf6 {[%emt 0:00:50]} 7. Nf3 {[%emt 0:00:23]} b4 {[%emt 0:00:16] B23: Closed Sicilian: Lines without g3} 8. Ne2 {[%emt 0:00:08]} d5 {[%emt 0:00:26]} (8... d6 $11) 9. e5 {[%emt 0:01:44]} Nfd7 {[%emt 0:00:43]} 10. O-O {[%emt 0:02:51]} (10. f5 $16) 10... Nc6 {[%emt 0:00:36]} 11. f5 {[%emt 0:04:34]} exf5 {[%emt 0:08:37]} 12. e6 {[%emt 0:02:42]} fxe6 $146 {[%emt 0:02:07]} ({Predecessor:} 12... Nde5 13. Nxe5 Nxe5 14. Rxf5 f6 15. d4 cxd4 16. Nxd4 {1-0 (42) Short,N (2675)-Ausan,L Pretoria 2001}) 13. Nf4 {[%emt 0:00:49]} Qf6 {[%emt 0:07:28]} (13... e5 $11 14. Nxd5 Be7) 14. Re1 {[%emt 0:07:05]} Nd8 $1 {[%emt 0:02:02]} 15. Ng5 {[%emt 0:04:39]} e5 $1 {[%emt 0:07:23]} 16. Nxd5 {[%emt 0:09:59]} Qd6 {[%emt 0:01:22]} 17. Ne3 $1 {[%emt 0:02:54]} Bxg2 {[%emt 0:00:18]} 18. Kxg2 {[%emt 0:00:32]} g6 {[%emt 0:12:55]} 19. Qf3 {[%emt 0:04:29]} Rc8 {[%emt 0:05:52]} 20. Nc4 {[%emt 0:01:01]} Qf6 $2 {[%emt 0:00:36] [#]} (20... Qc6 $14) 21. Qd5 $2 {[%emt 0:08:00]} (21. Bf4 $1 $18 Be7 22. Nxe5) 21... Qc6 {[%emt 0:01:56]} 22. Qxc6 {[%emt 0:00:54]} Nxc6 {[%emt 0:00:06]} 23. Bf4 {[%emt 0:02:35]} Be7 {[%emt 0:00:11]} 24. Nxe5 {[%emt 0:00:52]} Ncxe5 {[%emt 0:00:12]} 25. Bxe5 {[%emt 0:00:07]} Nxe5 {[%emt 0:00:05]} 26. Rxe5 {[%emt 0:00:03]} Kd7 {[%emt 0:00:11]} 27. Nf3 {[%emt 0:00:48]} Bf6 {[%emt 0:00:05]} 28. Re2 {[%emt 0:00:28]} Bxb2 {[%emt 0:00:54]} 29. Rae1 {[%emt 0:00:40]} Rhe8 {[%emt 0:01:51]} 30. Ng5 {[%emt 0:00:14]} h6 {[%emt 0:04:54]} 31. Rxe8 {[%emt 0:01:41]} Rxe8 {[%emt 0:01:18]} 32. Rxe8 {[%emt 0:00:06]} Kxe8 {[%emt 0:00:03]} 33. Ne6 {[%emt 0:00:08]} Bd4 {[%emt 0:00:32]} 34. Kf3 {[%emt 0:01:01]} Ke7 {[%emt 0:16:09]} 35. Nf4 {[%emt 0:02:00]} g5 {[%emt 0:00:21]} 36. Nd5+ {[%emt 0:00:17]} Ke6 {[%emt 0:01:01]} 37. Nb6 {[%emt 0:00:24]} g4+ {[%emt 0:01:16]} 38. Kg2 {[%emt 0:00:03]} Be5 {[%emt 0:00:36]} 39. h3 {[%emt 0:01:00]} Bc7 {[%emt 0:00:26]} 40. Nc4 {[%emt 0:00:13]} h5 {[%emt 0:00:52]} 41. hxg4 {[%emt 0:01:10]} fxg4 {[%emt 0:00:14]} 42. Kf2 {[%emt 0:01:15]} Kd5 {[%emt 0:00:07]} 43. Nd2 {[%emt 0:00:40]} Kd4 {[%emt 0:01:32]} 44. Ne4 {[%emt 0:00:03]} a5 {[%emt 0:00:11]} 45. Ke2 {[%emt 0:01:23]} a4 {[%emt 0:00:11]} 46. Kd2 {[%emt 0:01:12]} c4 {[%emt 0:00:14]} 47. Nf6 $19 {[%emt 0:01:56]} Bxg3 {[%emt 0:01:17]} 48. Nxh5 {[%emt 0:00:08]} Be5 {[%emt 0:00:02]} 49. dxc4 {[%emt 0:00:28]} Kxc4 {[%emt 0:01:07]} 50. Kc1 {[%emt 0:00:07]} g3 {[%emt 0:01:58]} 51. Nxg3 {[%emt 0:00:04]} Bxg3 {[%emt 0:00:09]} 52. Kb1 {[%emt 0:00:37]} Kc3 {[%emt 0:00:04]} 53. Kc1 {[%emt 0:00:04]} Be5 {[%emt 0:00:13]} 54. Kb1 {[%emt 0:00:07]} Kd2 {[%emt 0:00:09]} 55. a3 {[%emt 0:00:18]} b3 {[%emt 0:00:24]} 56. c3 {[%emt 0:01:30]} Kxc3 {[%emt 0:00:04]} 57. Kc1 {[%emt 0:00:06]} Bd6 {[%emt 0:00:20]} 58. Kb1 {[%emt 0:00:07]} Bxa3 {[%emt 0:00:05]} 59. Ka1 {[%emt 0:00:02]} Bc1 {[%emt 0:00:25]} 60. Kb1 {[%emt 0:00:04]} a3 {[%emt 0:00:04]} 0-1

[Event "2nd Kalyan Dombivali 2019"]
[Site "Kalyan"]
[Date "2019.02.01"]
[Round "7"]
[White "Shivshankar Iyer S"]
[Black "Vijay, Anand M."]
[Result "0-1"]
[ECO "E11"]
[WhiteElo "1619"]
[BlackElo "1841"]
[Annotator "NA RC"]
[PlyCount "108"]
[EventDate "2019.01.28"]
[EventType "swiss"]
[EventRounds "10"]
[EventCountry "IND"]
[SourceTitle "playchess.com"]
[Source "ChessBase"]
[SourceQuality "1"]
[TimeControl "5400+30"]

{[%evp 19,106,13,3,32767,32767,32767,32767,32767,32767,-13,0,-39,-34,-32,0,-6,0,32767,32767,32767,32767,0,0,32767,32767,32767,32767,0,0,0,22,32767,32767,32767,32767,0,0,0,0,0,0,0,0,0,0,0,0,0,0,0,-4,32767,32767,32767,32767,32767,32767,32767,32767,-196,32767,32767,32767,32767,32767,-311,-180,32767,32767,32767,32767,-465,-422,-447,-506,-395,-511,-552,-420,32767,32767,32767,32767,32767,32767,-570,-465,-486,-516]} 1. d4 {[%emt 0:00:00]} Nf6 {[%emt 0:07:18]} 2. Nf3 {[%emt 0:00:00]} e6 {[%emt 0:00:07]} 3. c4 {[%emt 0:00:00]} Bb4+ {[%emt 0:00:06]} 4. Bd2 {[%emt 0:00:01]} Bxd2+ {[%emt 0:00:39]} 5. Qxd2 {[%emt 0:00:12]} b6 {[%emt 0:00:05]} 6. g3 {[%emt 0:00:10]} Bb7 {[%emt 0:00:05]} 7. Bg2 {[%emt 0:00:05]} O-O {[%emt 0:00:47]} 8. Nc3 {[%emt 0:00:05]} d6 {[%emt 0:00:04]} 9. O-O {[%emt 0:00:12]} Nbd7 {[%emt 0:00:04]} 10. Rfd1 {[%emt 0:01:52]} Ne4 {[%emt 0:00:18] LiveBook: 3 Games} 11. Nxe4 {[%emt 0:02:09]} Bxe4 {[%emt 0:00:07]} 12. Nh4 {[%emt 0:07:08]} Bxg2 {[%emt 0:00:09]} 13. Nxg2 {[%emt 0:00:06]} e5 {[%emt 0:00:14]} 14. e3 {[%emt 0:00:34]} Re8 {[%emt 0:00:36]} 15. f4 {[%emt 0:01:03]} exd4 {[%emt 0:00:36]} 16. exd4 {[%emt 0:00:11]} f5 {[%emt 0:00:58]} 17. Re1 {[%emt 0:05:39]} Nf6 {[%emt 0:00:07]} 18. Qd3 {[%emt 0:01:21]} Qd7 {[%emt 0:00:14]} 19. Nh4 {[%emt 0:00:37]} g6 {[%emt 0:00:09]} 20. Nf3 {[%emt 0:01:27]} Rxe1+ {[%emt 0:01:45]} 21. Rxe1 {[%emt 0:01:14]} Re8 {[%emt 0:00:06]} 22. Rxe8+ {[%emt 0:01:12]} Qxe8 {[%emt 0:00:06]} 23. d5 {[%emt 0:02:08]} Qa4 {[%emt 0:01:00]} 24. a3 {[%emt 0:06:36]} Ne4 {[%emt 0:04:22]} 25. Ng5 {[%emt 0:03:39]} Nxg5 {[%emt 0:01:00]} 26. fxg5 {[%emt 0:00:07]} Qe8 {[%emt 0:00:01]} 27. Kf2 {[%emt 0:00:17]} Qe5 {[%emt 0:00:02]} 28. Qd2 {[%emt 0:02:29]} a5 {[%emt 0:00:58]} 29. b4 {[%emt 0:00:38]} axb4 {[%emt 0:02:31]} 30. axb4 {[%emt 0:00:05]} Kf7 {[%emt 0:00:04]} 31. b5 {[%emt 0:03:41]} Ke7 {[%emt 0:01:31]} 32. Qe3 {[%emt 0:01:29]} Kd7 {[%emt 0:00:06]} 33. Kf3 {[%emt 0:00:37]} Kc8 {[%emt 0:00:23]} 34. h3 {[%emt 0:02:41]} Qg7 {[%emt 0:07:57]} 35. Qe8+ {[%emt 0:02:52]} Kb7 {[%emt 0:00:11]} 36. Qc6+ {[%emt 0:00:12]} Ka7 {[%emt 0:00:13]} 37. h4 {[%emt 0:01:48]} Qe7 {[%emt 0:00:13]} 38. Kf2 {[%emt 0:01:09]} Kb8 {[%emt 0:00:09]} 39. Kf1 {[%emt 0:03:58]} Qe4 {[%emt 0:00:52]} 40. Kf2 {[%emt 0:00:11]} f4 {[%emt 0:00:21]} 41. gxf4 {[%emt 0:00:18]} Qxf4+ {[%emt 0:00:06]} 42. Ke2 {[%emt 0:04:41]} Qxh4 {[%emt 0:00:55]} (42... Qe4+ $142 43. Kd1 Qxh4 44. Qe8+ Ka7) 43. Qe8+ {[%emt 0:00:56]} Ka7 {[%emt 0:00:12]} 44. Qc6 {[%emt 0:00:28]} Qe4+ {[%emt 0:00:09]} 45. Kf2 {[%emt 0:02:27]} Qe7 {[%emt 0:01:09]} 46. c5 {[%emt 0:04:18]} dxc5 {[%emt 0:02:16]} 47. Qf6 {[%emt 0:00:39]} Qd6 {[%emt 0:01:46]} 48. Qf7 {[%emt 0:02:27]} Kb7 {[%emt 0:00:33]} 49. Qf3 {[%emt 0:02:22]} Ka7 {[%emt 0:00:42]} 50. Qe4 {[%emt 0:01:19]} Qh2+ {[%emt 0:00:19]} 51. Kf1 {[%emt 0:01:02]} Qh3+ {[%emt 0:00:50]} 52. Ke2 {[%emt 0:02:08]} Qd7 {[%emt 0:00:07]} 53. Kd1 $19 {[%emt 0:04:59]} Qxb5 {[%emt 0:01:03]} 54. d6 {[%emt 0:02:38]} Qd7 {[%emt 0:00:20]} 0-1

[Event "2nd Kalyan Dombivali 2019"]
[Site "Kalyan"]
[Date "2019.02.01"]
[Round "7"]
[White "Kadam Rishi R"]
[Black "Choudki Khushi"]
[Result "0-1"]
[ECO "B00"]
[WhiteElo "1604"]
[BlackElo "1383"]
[Annotator "NA"]
[PlyCount "76"]
[EventDate "2019.01.28"]
[EventType "swiss"]
[EventRounds "10"]
[EventCountry "IND"]
[SourceTitle "playchess.com"]
[Source "ChessBase"]
[SourceQuality "1"]
[TimeControl "5400+30"]

1. e4 {[%emt 0:00:00]} Nc6 {[%emt 0:00:00]} 2. Nf3 {[%emt 0:00:01]} f5 {[%emt 0:00:18]} 3. exf5 {[%emt 0:00:53]} d5 {[%emt 0:00:38]} 4. d4 {[%emt 0:00:59]} Bxf5 {[%emt 0:01:09]} 5. Bd3 {[%emt 0:03:57]} e6 {[%emt 0:04:47]} 6. O-O {[%emt 0:04:30]} Be7 {[%emt 0:01:31]} 7. Bxf5 {[%emt 0:07:45]} exf5 {[%emt 0:00:08]} 8. Qd3 {[%emt 0:00:19]} Nf6 {[%emt 0:02:54]} 9. Bg5 {[%emt 0:10:07]} O-O {[%emt 0:06:00]} 10. Bxf6 {[%emt 0:01:15]} Bxf6 {[%emt 0:02:45]} 11. c3 {[%emt 0:01:19]} Qd7 {[%emt 0:01:50]} 12. Nbd2 {[%emt 0:00:33]} g5 {[%emt 0:03:05]} 13. Rfe1 {[%emt 0:05:45]} Rae8 {[%emt 0:02:36]} 14. Nf1 {[%emt 0:01:28]} g4 {[%emt 0:06:43]} 15. N3d2 {[%emt 0:00:11]} f4 {[%emt 0:00:42]} 16. f3 {[%emt 0:01:14]} Kh8 {[%emt 0:10:04]} 17. fxg4 {[%emt 0:12:34]} Qxg4 {[%emt 0:00:58]} 18. h3 {[%emt 0:12:10]} Qg6 {[%emt 0:02:46]} 19. Qxg6 {[%emt 0:00:57]} hxg6 {[%emt 0:00:09]} 20. Nf3 {[%emt 0:00:03]} Ne7 {[%emt 0:19:23]} 21. N1h2 {[%emt 0:01:54]} Nf5 {[%emt 0:02:45]} 22. Ng4 {[%emt 0:00:53]} Kg7 {[%emt 0:05:45]} 23. Nxf6 {[%emt 0:08:54]} Kxf6 {[%emt 0:00:43]} 24. Ne5 {[%emt 0:00:26]} Kg5 {[%emt 0:09:54]} 25. Kf2 {[%emt 0:08:41]} Ne3 {[%emt 0:04:54]} 26. Rac1 {[%emt 0:03:02]} Kh6 {[%emt 0:03:38]} 27. g4 {[%emt 0:07:15]} g5 {[%emt 0:01:36]} 28. Rh1 {[%emt 0:02:59]} Kg7 {[%emt 0:01:23]} 29. h4 {[%emt 0:00:28]} Rxe5 {[%emt 0:03:06]} 30. dxe5 {[%emt 0:00:10]} Nxg4+ {[%emt 0:00:04]} 31. Kg1 {[%emt 0:01:45]} Nxe5 {[%emt 0:01:18]} 32. hxg5 {[%emt 0:00:32]} Nf3+ {[%emt 0:00:07]} 33. Kf2 {[%emt 0:00:04]} Nxg5 {[%emt 0:00:38]} 34. Rcg1 {[%emt 0:02:26]} Kf6 {[%emt 0:02:00]} 35. Rh4 {[%emt 0:01:28]} Ne6 36. Re1 {[%emt 0:00:19]} Kg5 {[%emt 0:01:04]} 37. Rh7 {[%emt 0:00:21]} Rf6 {[%emt 0:00:20]} 38. Rg7+ {[%emt 0:00:32]} Nxg7 {[%emt 0:00:22]} 0-1

[Event "2nd Kalyan Dombivali 2019"]
[Site "Kalyan"]
[Date "2019.02.01"]
[Round "7"]
[White "Bhat Sanjay"]
[Black "Nehete Akshay S"]
[Result "1/2-1/2"]
[ECO "A15"]
[WhiteElo "1597"]
[BlackElo "1788"]
[Annotator "NA RC"]
[PlyCount "63"]
[EventDate "2019.01.28"]
[EventType "swiss"]
[EventRounds "10"]
[EventCountry "IND"]
[SourceTitle "playchess.com"]
[Source "ChessBase"]
[SourceQuality "1"]
[TimeControl "5400+30"]

1. c4 {[%emt 0:02:38]} Nf6 {[%emt 0:00:00]} 2. g3 {[%emt 0:00:02]} g6 {[%emt 0:00:00]} 3. Bg2 {[%emt 0:00:03]} Bg7 {[%emt 0:00:00]} 4. Nc3 {[%emt 0:00:03]} O-O {[%emt 0:00:46]} 5. e4 {[%emt 0:00:03]} d6 {[%emt 0:00:06]} 6. Nge2 {[%emt 0:00:04]} Nc6 {[%emt 0:09:10]} 7. O-O {[%emt 0:00:03]} a6 {[%emt 0:10:34]} 8. d3 {[%emt 0:00:15]} Rb8 {[%emt 0:01:28]} 9. a4 {[%emt 0:02:16]} Nb4 {[%emt 0:19:42]} 10. h3 {[%emt 0:14:58]} c5 {[%emt 0:05:40]} 11. f4 {[%emt 0:00:16]} Bd7 {[%emt 0:03:50]} 12. Be3 {[%emt 0:19:10]} Qc7 {[%emt 0:02:57]} 13. Qd2 {[%emt 0:00:22]} Bc6 {[%emt 0:13:23]} 14. f5 {[%emt 0:01:07]} Rfc8 {[%emt 0:03:35]} 15. g4 {[%emt 0:01:14]} b5 {[%emt 0:02:44]} 16. Rf2 {[%emt 0:03:12]} bxc4 {[%emt 0:02:42]} 17. dxc4 {[%emt 0:00:01]} Qb7 {[%emt 0:01:48]} 18. Ng3 {[%emt 0:01:06]} Nd7 {[%emt 0:01:27]} 19. Nd5 {[%emt 0:02:07]} Ne5 {[%emt 0:00:28]} 20. Bf1 {[%emt 0:00:15]} Nxd5 {[%emt 0:02:45]} 21. exd5 {[%emt 0:00:06]} Bd7 {[%emt 0:00:52]} 22. Ra3 {[%emt 0:02:01]} Qb4 {[%emt 0:01:15]} 23. Qc2 {[%emt 0:00:08]} Rb7 {[%emt 0:01:55]} 24. Bc1 {[%emt 0:00:47]} Rcb8 {[%emt 0:04:53]} 25. Kg2 {[%emt 0:00:12]} Qa5 {[%emt 0:03:08]} 26. Bd2 {[%emt 0:00:30]} Qc7 {[%emt 0:01:02]} 27. Bc3 {[%emt 0:00:07]} Re8 {[%emt 0:01:43]} 28. g5 {[%emt 0:01:39]} Bh8 {[%emt 0:01:40]} 29. Qd2 {[%emt 0:00:44]} Rbb8 {[%emt 0:00:41]} 30. Be2 {[%emt 0:00:16]} Bc8 {[%emt 0:01:48]} 31. Kh2 {[%emt 0:00:45]} e6 32. dxe6 1/2-1/2

[Event "2nd Kalyan Dombivali 2019"]
[Site "Kalyan"]
[Date "2019.02.01"]
[Round "7"]
[White "Arvind, Ramnath Iyer"]
[Black "Akshit Jha"]
[Result "1/2-1/2"]
[ECO "C02"]
[WhiteElo "1567"]
[BlackElo "1604"]
[Annotator "NA RC"]
[PlyCount "101"]
[EventDate "2019.01.28"]
[EventType "swiss"]
[EventRounds "10"]
[EventCountry "IND"]
[SourceTitle "playchess.com"]
[Source "ChessBase"]
[SourceQuality "1"]
[TimeControl "5400+30"]

1. e4 {[%emt 0:00:52]} e6 {[%emt 0:00:00]} 2. d4 {[%emt 0:01:28]} d5 {[%emt 0:00:00]} 3. e5 {[%emt 0:00:17]} c5 {[%emt 0:00:00]} 4. c3 {[%emt 0:00:07]} Qb6 {[%emt 0:00:00]} 5. Bd3 {[%emt 0:00:40]} cxd4 {[%emt 0:00:00]} 6. cxd4 {[%emt 0:00:06]} Nc6 {[%emt 0:00:02]} 7. Nf3 {[%emt 0:00:02]} Bd7 {[%emt 0:00:07]} 8. Bc2 {[%emt 0:00:08]} Nb4 {[%emt 0:00:04]} 9. Nc3 {[%emt 0:00:03]} Nxc2+ {[%emt 0:00:10]} 10. Qxc2 {[%emt 0:00:03]} Rc8 {[%emt 0:00:23]} 11. O-O {[%emt 0:02:54]} Ne7 {[%emt 0:00:08]} 12. Be3 {[%emt 0:07:09]} Nf5 {[%emt 0:00:38]} 13. Qd2 {[%emt 0:03:44]} Bb4 {[%emt 0:01:42]} 14. Rfc1 {[%emt 0:03:52]} O-O {[%emt 0:01:04]} 15. a3 {[%emt 0:02:20]} Be7 {[%emt 0:00:55]} 16. Ne2 {[%emt 0:05:16]} Nxe3 17. Qxe3 {[%emt 0:08:53]} Rxc1+ {[%emt 0:01:51]} 18. Qxc1 {[%emt 0:01:01]} Rc8 {[%emt 0:00:04]} 19. Qd2 {[%emt 0:01:37]} Bb5 {[%emt 0:06:28]} 20. Nc3 {[%emt 0:06:08]} Bc4 {[%emt 0:02:15]} 21. Rc1 {[%emt 0:02:01]} Rc6 {[%emt 0:03:16]} 22. Nd1 {[%emt 0:08:14]} Qc7 {[%emt 0:04:51]} 23. Ne3 {[%emt 0:03:33]} Bb3 {[%emt 0:02:24]} 24. Rxc6 Qxc6 {[%emt 0:00:43]} 25. Ne1 {[%emt 0:03:27]} b6 {[%emt 0:05:14]} 26. Nd3 {[%emt 0:02:42]} a5 {[%emt 0:02:45]} 27. Qc1 {[%emt 0:00:30]} Qxc1+ {[%emt 0:00:03]} 28. Nxc1 {[%emt 0:00:01]} Ba4 {[%emt 0:00:01]} 29. Kf1 {[%emt 0:00:56]} Kf8 {[%emt 0:00:52]} 30. Ke2 {[%emt 0:00:58]} Ke8 {[%emt 0:00:06]} 31. Kd2 {[%emt 0:00:24]} Kd7 {[%emt 0:00:16]} 32. f4 {[%emt 0:02:10]} Bb5 {[%emt 0:00:40]} 33. g4 {[%emt 0:00:54]} a4 {[%emt 0:01:12]} 34. Ne2 {[%emt 0:02:08]} Bxe2 {[%emt 0:02:46]} 35. Kxe2 {[%emt 0:00:08]} b5 {[%emt 0:00:02]} 36. Nc2 {[%emt 0:00:28]} Kc6 {[%emt 0:00:10]} 37. Nb4+ {[%emt 0:01:21]} Kb6 {[%emt 0:00:25]} 38. g5 Bxb4 {[%emt 0:14:06]} 39. axb4 {[%emt 0:00:56]} g6 {[%emt 0:00:06]} 40. h4 {[%emt 0:00:37]} Kc7 {[%emt 0:00:08]} 41. Kf3 {[%emt 0:00:11]} Kd7 {[%emt 0:00:04]} 42. Kg4 {[%emt 0:00:13]} Ke7 {[%emt 0:00:05]} 43. h5 {[%emt 0:00:56]} Kf8 {[%emt 0:00:06]} 44. h6 {[%emt 0:00:27]} Kg8 {[%emt 0:00:05]} 45. Kf3 {[%emt 0:00:24]} Kf8 {[%emt 0:00:05]} 46. Ke3 {[%emt 0:00:05]} Ke7 {[%emt 0:00:01]} 47. Kd3 {[%emt 0:00:08]} Kd7 {[%emt 0:00:04]} 48. Kc3 {[%emt 0:00:12]} Kc6 {[%emt 0:00:05]} 49. b3 {[%emt 0:00:22]} a3 {[%emt 0:00:08]} 50. Kc2 a2 51. Kb2 1/2-1/2

[Event "2nd Kalyan Dombivali 2019"]
[Site "Kalyan"]
[Date "2019.02.01"]
[Round "7"]
[White "Soni Deepak R"]
[Black "Shreyas Ghadi"]
[Result "0-1"]
[ECO "A46"]
[WhiteElo "1425"]
[BlackElo "1653"]
[Annotator "NA RC"]
[PlyCount "64"]
[EventDate "2019.01.28"]
[EventType "swiss"]
[EventRounds "10"]
[EventCountry "IND"]
[SourceTitle "playchess.com"]
[Source "ChessBase"]
[SourceQuality "1"]
[TimeControl "5400+30"]

1. d4 {[%emt 0:02:39]} Nf6 {[%emt 0:00:00]} 2. Nf3 {[%emt 0:00:06]} e6 {[%emt 0:00:00]} 3. Bf4 {[%emt 0:00:45]} b6 {[%emt 0:00:09]} 4. e3 {[%emt 0:00:15]} Bb7 {[%emt 0:00:07]} 5. Nbd2 {[%emt 0:02:07]} c5 {[%emt 0:00:56]} 6. c3 {[%emt 0:02:30]} Nc6 {[%emt 0:00:59]} 7. Bd3 {[%emt 0:06:03]} Be7 {[%emt 0:05:01]} 8. h3 {[%emt 0:04:41]} O-O {[%emt 0:01:01]} 9. Rc1 {[%emt 0:02:02]} h6 {[%emt 0:02:31]} 10. Bb1 {[%emt 0:02:44]} Nd5 {[%emt 0:04:45]} 11. Bh2 {[%emt 0:01:46]} Rc8 {[%emt 0:05:32]} 12. e4 {[%emt 0:05:28]} Nc7 {[%emt 0:03:25]} 13. Qc2 {[%emt 0:07:42]} cxd4 {[%emt 0:01:19]} 14. Bxc7 {[%emt 0:06:52]} Qxc7 {[%emt 0:02:23]} 15. cxd4 {[%emt 0:01:55]} Qb8 {[%emt 0:01:22]} 16. Qd1 {[%emt 0:05:12]} Ba6 {[%emt 0:03:01]} 17. a3 {[%emt 0:05:24]} d5 {[%emt 0:03:18]} 18. Rc3 {[%emt 0:03:38]} e5 {[%emt 0:30:49]} 19. Bd3 {[%emt 0:13:23]} Bxd3 {[%emt 0:11:13]} 20. Rxd3 {[%emt 0:01:14]} dxe4 {[%emt 0:00:03]} 21. Nxe4 {[%emt 0:02:33]} f5 {[%emt 0:00:08]} 22. Ng3 {[%emt 0:02:42]} e4 {[%emt 0:00:13]} 23. d5 {[%emt 0:00:39]} Na5 {[%emt 0:06:11]} 24. Re3 {[%emt 0:02:05]} Bc5 {[%emt 0:01:26]} 25. Nd4 {[%emt 0:02:10]} f4 {[%emt 0:00:21]} 26. Ngf5 {[%emt 0:05:31]} fxe3 {[%emt 0:00:41]} 27. Qg4 {[%emt 0:03:28]} Qe5 {[%emt 0:02:12]} 28. Nxh6+ {[%emt 0:05:44]} Kh7 {[%emt 0:00:53]} 29. Nhf5 {[%emt 0:01:00]} Bxd4 {[%emt 0:01:51]} 30. Qh4+ {[%emt 0:00:49]} Kg8 {[%emt 0:01:07]} 31. Ne7+ {[%emt 0:00:59]} Qxe7 {[%emt 0:00:04]} 32. Qxe7 {[%emt 0:01:14]} Rc1+ {[%emt 0:00:06]} 0-1